Cogmind - Beta 9.4 --- EXPLORER MODE // 2020.01.21 @ 02:47:36 Player: Buwaro Result: Self-destructed Performance ------------- Evolutions (1) 500 Regions Visited (2) 400 Robots Destroyed (7) 35 Value Destroyed (54) 54 Prototype IDs (3) 60 Alien Tech Used (0) 0 Bonus (0) 0 TOTAL SCORE: 1049 Bonus ------- None Cogmind --------- Core Integrity 377/400 Matter 300/300 Energy 116/125 System Corruption 0% Temperature Cool (106) Movement Flying (120) Ox1 Location -9/Materials Parts ------- > --- POWER (2) -------- Light Ion Engine > --- PROPULSION (3) --- Flight Unit > --- UTILITY (3) ------ Signal Interpreter ECM Suite > --- WEAPON (2) ------- Medium Laser > --- INVENTORY (4) ---- Light Ion Engine Small Storage Unit Sensor Array Propulsion Shielding Peak State ------------ > --- POWER ------------ Ion Engine > --- PROPULSION ------- Aluminum Leg Aluminum Leg > --- UTILITY ---------- Medium Storage Unit Sensor Array Propulsion Shielding > --- WEAPON ----------- Medium Laser Medium Laser > --- INVENTORY -------- Ion Engine [Rating: 8] Favorites ----------- Power Light Ion Engine Engine Light Ion Engine Propulsion Flight Unit Leg Aluminum Leg Flight Unit Flight Unit Utility Sensor Array Device Sensor Array Storage Medium Storage Unit Processor Signal Interpreter Protection Propulsion Shielding Weapon Medium Laser Energy Gun Medium Laser Build | -11 -10 -9 ------- Run | Scr Mat Mat Slots Evolved 3 | . 1 2 Power 1 | . . 1 Propulsion 1 | . . 1 Utility 1 | . 1 . Weapon . | . . . Parts Attached 19 | 7 10 2 Power 3 | 1 1 1 Engine 3 | 1 1 1 Core . | . . . Reactor . | . . . Propulsion 5 | 2 3 . Treads . | . . . Leg 2 | 2 . . Wheel . | . . . Hover . | . . . Flight 3 | . 3 . Utility 8 | 2 6 . Device 3 | . 3 . Storage 2 | 1 1 . Processor 1 | . 1 . Hackware . | . . . Protection 2 | 1 1 . Artifact . | . . . Weapon 3 | 2 . 1 Energy Gun 3 | 2 . 1 Energy Cannon . | . . . Ballistic Gun . | . . . Ballistic Cannon . | . . . Launcher . | . . . Special Weapon . | . . . Impact Weapon . | . . . Slashing Weapon . | . . . Piercing Weapon . | . . . Special Melee Weapon . | . . . Unidentified Prototypes . | . . . Parts Lost 2 | . . 2 Power . | . . . Propulsion 1 | . . 1 Utility . | . . . Weapon 1 | . . 1 Highest Loss Streak 2 | . . 2 Average Slot Usage (%) 89 | . 91 72 Engine 11 | . 12 10 Leg 11 | . 12 . Flight 13 | . 12 20 Device 14 | . 13 20 Storage 5 | . 5 . Processor 5 | . 5 10 Protection 9 | . 10 . Energy Gun 17 | . 18 12 Naked Turns . | . . . Heaviest Build 21 | 18 21 8 Greatest Support 20 | 20 20 8 Greatest Overweight (x) 2 | . 2 . Average Overweight (x) . | . . . Largest Inventory Capacity 8 | 8 8 4 Average Capacity 5 | 6 5 4 Most Carried 6 | 4 6 4 Average Carried 3 | 1 3 3 Final Capacity 8 | 8 4 4 Final Carried 4 | 2 4 4 Class Distribution -------------------- 100% | Hacker-Mutant Dominant Class ---------------- Hacker-Mutant | -10/Materials Hacker-Mutant | -9/Materials Resources | -11 -10 -9 ----------- Run | Scr Mat Mat Matter Collected 380 | 210 145 25 Remotely . | . . . Salvage Created 226 | . 226 . Parts 18 | . 18 . Haulers Intercepted 1 | . 1 . Recyclers Shooed 1 | . 1 . Parts Field Recycled . | . . . Retrieved Matter . | . . . Parts Self-Destructed . | . . . Prevented . | . . . Kills | -11 -10 -9 ------- Run | Scr Mat Mat Combat Hostiles Destroyed 4 | . 4 . Guns 4 | . 4 . Classes Destroyed 3 | . 3 . Hauler 1 | . 1 . Recycler 2 | . 2 . Swarmer 4 | . 4 . Best Kill Streak 4 | . 4 . Combat Bots Only 2 | . 2 . Max Kills in Single Turn 1 | . 1 . Gunslinging . | . . . Exploded . | . . . Melee . | . . . Uniques/NPCs Destroyed . | . . . Combat | -11 -10 -9 -------- Run | Scr Mat Mat Damage Taken 179 | . 78 101 Core 32 | . 9 23 Absorbed by Shields . | . . . Core Remaining (%) 98 | 100 96 . Volleys Fired 16 | . 14 2 Largest 2 | . 2 2 Hottest 100 | . 100 100 Shots Fired 24 | . 20 4 Gun 24 | . 20 4 Cannon . | . . . Launcher . | . . . Special . | . . . Kinetic . | . . . Thermal 24 | . 20 4 Explosive . | . . . Electromagnetic . | . . . Robot Hit Streak 11 | . 11 5 Robot Miss Streak 1 | . 1 . Penetration Max . | . . . Secondary Targets 1 | . 1 . Max Gunslinging Chain 1 | . 1 . Shots Hit Robots 21 | . 17 4 Core Hits 11 | . 10 1 Critical Hits . | . . . Critical Kills . | . . . Critical Parts Destroyed . | . . . Melee Attacks . | . . . Impact . | . . . Slashing . | . . . Piercing . | . . . Sneak Attacks . | . . . Combat Hostiles . | . . . Follow-up Attacks . | . . . Damage Inflicted 249 | . 201 48 Guns 249 | . 201 48 Cannons . | . . . Explosions . | . . . Melee . | . . . Ramming . | . . . Kinetic . | . . . Thermal 249 | . 201 48 Explosive . | . . . Electromagnetic . | . . . Impact . | . . . Slashing . | . . . Piercing . | . . . Highest Corruption 2 | . 2 . Average Corruption 1 | . 1 . Corruption Purged . | . . . Overload Shots . | . . . Overflow Damage . | . . . Projectiles . | . . . Explosions . | . . . Melee . | . . . Knockbacks . | . . . Impact . | . . . Kinetic . | . . . Secondary . | . . . Self-Inflicted Damage . | . . . Shots . | . . . Rammed . | . . . Targets Rammed . | . . . Kicked . | . . . Crushed . | . . . Highest Temperature 144 | . 144 100 Average Temperature 56 | . 56 59 Received Heat Transfer 63 | . 6 57 Siege Activations . | . . . Robots Corrupted . | . . . Combat Hostiles . | . . . Parts Fried . | . . . Impact Corruptions . | . . . Robots Melted . | . . . Combat Hostiles . | . . . Parts Melted . | . . . Heat Transferred 740 | . 592 148 Parts Sabotaged . | . . . Parts Stolen . | . . . Parts Stripped . | . . . Power Chain Reactions . | . . . Missiles Intercepted . | . . . Alert | -11 -10 -9 ------- Run | Scr Mat Mat Peak Influence 139 | . 139 11 Average Influence 41 | . 51 8 Maximum Alert Level . | . . . Low Security (%) 100 | 100 100 100 Level 1 . | . . . Level 2 . | . . . Level 3 . | . . . Level 4 . | . . . Level 5 . | . . . High Security . | . . . Max Security . | . . . Squads Dispatched 1 | . 1 . Investigation 1 | . 1 . Extermination . | . . . Reinforcement . | . . . Assault . | . . . Garrison . | . . . Intercept . | . . . Construction Impeded . | . . . Haulers Reinforced . | . . . Stealth | -11 -10 -9 --------- Run | Scr Mat Mat Distress Signals 3 | . 3 . Communications Jammed . | . . . Distress Signals . | . . . Times Spotted 19 | . 13 6 Peak Tracking Total 6 | . 4 6 Tactical Retreats 3 | . 3 . Traps | -11 -10 -9 ------- Run | Scr Mat Mat Traps Triggered 2 | . 2 . Indirectly . | . . . Trap Hack Attempts . | . . . Triggered . | . . . Disarmed . | . . . Reprogrammed . | . . . Reused . | . . . Traps Extracted . | . . . Installed . | . . . Triggered . | . . . Machines | -11 -10 -9 ---------- Run | Scr Mat Mat Machines Disabled . | . . . Max in Single Turn . | . . . Machines Sabotaged . | . . . Garrisons Compromised . | . . . Overloaded Fab Kills . | . . . Fab Network Shutdowns . | . . . Hacking | -11 -10 -9 --------- Run | Scr Mat Mat Machines Accessed 6 | . 5 1 Terminals 6 | . 5 1 Fabricators . | . . . Repair Stations . | . . . Recycling Units . | . . . Scanalyzers . | . . . Garrison Access . | . . . Total Hacks 22 | . 16 6 Successful 16 | . 13 3 Failed 6 | . 3 3 Catastrophic . | . . . Database Lockouts . | . . . Manual 2 | . 2 . Terminals 22 | . 16 6 Fabricators . | . . . Repair Stations . | . . . Recycling Units . | . . . Scanalyzers . | . . . Garrison Access . | . . . Terminal Hacks 16 | . 13 3 Record 10 | . 8 2 Prototype ID Bank 1 | . 1 . Emergency Access Points 1 | . 1 . Alert Level 1 | . 1 . Unreport Threat 1 | . 1 . Registered Prototypes 1 | . 1 . Zone Layout 1 | . . 1 Fabricator Hacks . | . . . Repair Station Hacks . | . . . Recycling Unit Hacks . | . . . Scanalyzer . | . . . Garrison Access Hacks . | . . . Unauthorized Hacks . | . . . Terminals . | . . . Fabricators . | . . . Repair Stations . | . . . Recycling Units . | . . . Scanalyzers . | . . . Garrison Access . | . . . Data Cores Recovered . | . . . Used . | . . . Hacking Detections 6 | . 5 1 Full Trace Events 1 | . 1 . Feedback Events . | . . . Feedback Blocked . | . . . Robot Schematics Acquired . | . . . Robots Built . | . . . Matter . | . . . Time . | . . . Total Robot Build Rating . | . . . Part Schematics Acquired . | . . . Parts Built . | . . . Matter . | . . . Time . | . . . Total Part Build Rating . | . . . Parts Repaired . | . . . Time . | . . . Parts Recycled . | . . . Recycled Matter . | . . . Retrieved Matter . | . . . Retrieved Components . | . . . Parts Scanalyzed . | . . . Part Schematics Acquired . | . . . Parts Damaged . | . . . Bothacking | -11 -10 -9 ------------ Run | Scr Mat Mat Used RIF Installer . | . . . Robots Hacked . | . . . Non-combat . | . . . Combat . | . . . Robot Hacks Applied . | . . . Relay Couplers Released . | . . . Robots Rewired . | . . . Allies Hacked . | . . . Hacks Repelled . | . . . Allies | -11 -10 -9 -------- Run | Scr Mat Mat Total Allies . | . . . Largest Group . | . . . Highest-Rated Group . | . . . Highest-Rated Ally . | . . . Total Orders . | . . . Ally Attacks . | . . . Total Damage . | . . . Kills . | . . . Allies Corrupted . | . . . Allies Melted . | . . . Intel | -11 -10 -9 ------- Run | Scr Mat Mat Robot Analysis Total . | . . . Derelict Logs Recovered . | . . . Drone Launches . | . . . Drone Recoveries . | . . . Exploration | -11 -10 -9 ------------- Run | Scr Mat Mat Turns Passed 488 | 58 381 49 Spaces Moved 662 | 37 517 108 Core 20 | 4 16 . Treads . | . . . Legs 153 | 33 120 . Wheels . | . . . Hover . | . . . Flight 489 | . 381 108 Fastest Speed 37 | 50 37 37 Average Speed 59 | 112 60 37 Slowest Speed 150 | 120 150 37 Overloaded Moves . | . . . Propulsion Burnouts . | . . . Robots Hopped 4 | . 4 . Cave-ins Triggered . | . . . Exploration Rate (%) 34 | 3 85 15 Regions Visited 2 Branch Regions . Pre-discovered Areas . | . . . Known Exits Taken 2 | 1 1 . Unknown Exits Taken . | . . . Scrap Searched . | . . . Spaces Dug . | . . . Terrain Destroyed . | . . . Melee . | . . . Projectile . | . . . AOE . | . . . Actions | -11 -10 -9 --------- Run | Scr Mat Mat Total 728 | 53 561 114 Wait 7 | 1 6 . Move 652 | 36 508 108 Hop 4 | . 4 . Pick Up 17 | 9 8 . Fast Attach 2 | . 2 . Attach 12 | 7 3 2 Detach 5 | . 3 2 Swap 5 | . 5 . Drop 8 | . 8 . Fire 16 | . 14 2 Melee . | . . . Ram . | . . . Kick . | . . . Crush . | . . . Escape Stasis . | . . . Rewire . | . . . Trap . | . . . Miscellaneous . | . . . Route ------- -11/Scrapyard -10/Materials (discovered 4 exits: *Mat x2 / *Min x2) -9/Materials History --------- Turn | Location | Event 19 | -11/Scrapyard | Identified exit to Materials 19 | -11/Scrapyard | Discovered exit to Materials (range 15) 59 | -11/Scrapyard | Entered Materials 59 | -10/Materials | Evolved 1 slot: Utility x1 277 | -10/Materials | Identified exit to Mines 277 | -10/Materials | Discovered exit to Mines (range 16) 314 | -10/Materials | Identified exit to Materials 314 | -10/Materials | Discovered exit to Materials (range 9) 328 | -10/Materials | Build established: Hacker-Mutant 378 | -10/Materials | Discovered exit to Mines (range 12) 395 | -10/Materials | Discovered exit to Materials (range 16) 440 | -10/Materials | Entered another Materials area 440 | -9/Materials | Evolved 2 slots: Power x1, Propulsion x1 489 | -9/Materials | Self-destructed Last Messages --------------- 00451_ K-01 Serf collects debris. 00453_ Connecting with Terminal... >>Query(Earth) Third planet from the Sun in the [Solar System]. Terrestrial homeworld of [Human] civilization. By the late 21st century that civilization drained the planet's resources and destabilized the environment to the point that global-scale technology was necessary to maintain an increasingly fragile planet. >>Query(Human) Homo sapiens, dominant species in the [Solar System] until civilization in that system was presumably wiped out during the [Solar War]. [Achievement: Librarian] >>Layout(Zone) Retrieving Zone 8V layout... Downloaded map data. 00456_ K-01 Serf collects debris. 00470_ Acquired 25 matter. 00475_ K-01 Serf collects debris. 00488_ Med. Laser destroyed. 00489_ Flight Unit destroyed. Map ----- +----------------------------------------------------+ | ???????????????##??###?########## """ #????? | | ???????????????# #####??????????# """ #????? | | ?????????????#### ###########???# """ #????? | | ?????????????# #???# """ #????? | | ?????????????# #???# #????? | | ?????????????# #???######/########### | | ?????????????########### ######### + | | ???????????????????????# # # ####### | | ???????????????????????# # "" + #?????# | | ???????????????????????# + """ # #?????# | | ???????????????????????# # S" # #?##### | | ???????????????????????# k # # #?#"""# | | ???????????????????????# ######### ###"T"#### | | ???????????????????????# % | | ???????????????????????# | | ???????????????????????# " """"" | | ???????????????????????# """"""""" | | ???????????????????????# """ """ | | ???????????????????????# " | | ???????????????????????# " | | ???????????????????????# g | | ???????????????????????# | | ???????????????????????# ######### | | ???????????????????????# #???????? | | ???????????????????????# ###+### ?????????? | | ???????????????????????# @g###???????#???????????? | | ???????????????????????# #?????????????????????? | | ???????????????????????# #?????????????????????? | | ???????????????????????# #?????????????????????? | | ???????????????????????# ^ #?????????????????????? | | ???????????????????????# s #?????????????????????? | | ???????????????????????# #?????????????????????? | | ???????????????????????#s #???+########?????????? | | ???????????????????????# s## ??????? | | ???????????????????????# Y ??????? | | ???????????????????????# ??????? | | ???????????????????????# ######?????????? | | ???????????????????????###### #??????????????? | | ?????????????????????????????# ##??????????????? | | ?????????????????????????????? #???????????????? | | ??????????????????????????????? #???????????????? | | ??????????????????????????????? #???????????????? | | ???????????????????????????????? #???????????????? | | ????????????????????????????????? ???????????????? | | ????????????????????????????????? ??????????????? | | ?????????????????????????????????? ?????????????? | | ??????????????????????????????????? ?????????????? | | ?????????????????????????????????????????????????? | | ?????????????????????????????????????????????????? | | ?????????????????????????????????????????????????? | +----------------------------------------------------+ Best States ------------- Heat Dissipation 28 Energy Generation 10 Energy Capacity 250 Matter Stores 300 Matter Capacity 300 Sight Range 16 Robot Scan Range 10 Terrain Scan Density 10 ECM Strength 1 Armor Coverage 150 Resistance: KI 35 Resistance: TH 35 Resistance: EX 35 Resistance: EM 35 Resistance: I 35 Resistance: S 35 Resistance: P 35 Propulsion Shielding 33 Evasion (%) 62 Offensive Hacking 20 Item Schematics ----------------- None Robot Schematics ------------------ None Fabricated ------------ Nothing Alien Tech Used ----------------- None Achievements -------------- Crack Shot Everything Is Under Control Librarian Loot Pinata One Hack Too Far Challenges ------------ None Game ------ Seed I Am Cogmind Manual? 1 Play Time 00:27:28 Cumulative 4.2 hours Start 2020.01.21 @ 02:21:29 End 2020.01.21 @ 02:47:36 Sessions 1 Manual Loads 0 Difficulty Explorer Special Mode None Game No. 6 Rogue 5 Adventurer 0 Explorer 1 Win Type - Total 0 Types 0/0/0/0/0/0/0 Lore% 4 Gallery% 7 Achievement% 1 Wizard Run 0 Options --------- ASCII 0 Keyboard 0 Movement Mouse Keybinds 0 Fullscreen 2 Font 18/SmallcapsGlow Map View 76x50 Tactical HUD 1 Map Filters NONE Filters NONE Steam 1 RUN: 43e5b1b6-723e-496d-83bf-9efcd63791f7